[Event "44th Chess Olympiad Women 2022"]
[Site "Chennai"]
[Date "2022.08.03"]
[Round "6.34"]
[White "Munoz Santana, Doribel"]
[Black "Avila Fraire, Ameyalli"]
[Result "1/2-1/2"]
[WhiteElo "1851"]
[BlackElo "1907"]
[Annotator "NA RC"]
[PlyCount "78"]
[EventDate "2022.??.??"]
[TimeControl "60"]

1. d4 {[%emt 0:00:02]} Nf6 {[%emt 0:00:12]} 2. Nf3 {[%emt 0:00:06]} d5 {
[%emt 0:00:13]} 3. e3 {[%emt 0:00:12]} e6 {[%emt 0:01:28]} 4. Bd3 {[%emt 0:00:
00]} c5 {[%emt 0:01:17]} 5. c3 {[%emt 0:00:35]} Nc6 {[%emt 0:00:38]} 6. O-O {
[%emt 0:00:17]} b6 {[%emt 0:01:29]} 7. Nbd2 {[%emt 0:00:16]} Bb7 {[%emt 0:00:
00]} 8. Re1 {[%emt 0:00:55]} Be7 {[%emt 0:02:28]} 9. b3 {[%emt 0:16:50]} O-O {
[%emt 0:02:38]} 10. Bb2 {[%emt 0:01:37]} Rc8 {[%emt 0:03:53]} 11. Rc1 {[%emt 0:
00:00]} Bd6 {[%emt 0:13:52]} 12. e4 {[%emt 0:03:24]} dxe4 {[%emt 0:03:35]} 13.
Nxe4 {[%emt 0:03:56]} cxd4 {[%emt 0:07:05]} 14. Nxd6 {[%emt 0:03:43]} Qxd6 {
[%emt 0:00:06]} 15. cxd4 {[%emt 0:00:37]} Nb4 {[%emt 0:14:52]} 16. Rxc8 {
[%emt 0:03:22]} Rxc8 {[%emt 0:00:11]} 17. Bb1 {[%emt 0:00:36]} Nbd5 {[%emt 0:
00:00]} 18. Qd2 {[%emt 0:03:36]} Qf4 {[%emt 0:03:23]} 19. Rc1 {[%emt 0:10:38]}
Rxc1+ {[%emt 0:10:42]} 20. Bxc1 {[%emt 0:00:08]} Qxd2 {[%emt 0:06:30]} 21. Bxd2
{[%emt 0:00:07]} Ne8 {[%emt 0:06:01]} 22. Bd3 {[%emt 0:00:46]} Nd6 {[%emt 0:00:
00]} 23. Ne1 {[%emt 0:08:46]} Nf5 {[%emt 0:05:16]} 24. Nc2 {[%emt 0:02:11]} Nh4
{[%emt 0:01:52]} 25. f3 {[%emt 0:00:24]} g6 {[%emt 0:05:17]} 26. Kf2 {[%emt 0:
00:00]} Nf5 {[%emt 0:00:06]} 27. g4 {[%emt 0:01:41]} Nfe7 {[%emt 0:00:53]} 28.
Be4 {[%emt 0:08:21]} Ba6 {[%emt 0:02:46]} 29. Nb4 {[%emt 0:02:20]} Nxb4 {
[%emt 0:02:24]} 30. Bxb4 {[%emt 0:00:08]} Nd5 {[%emt 0:00:37]} 31. Bxd5 {
[%emt 0:01:47]} exd5 {[%emt 0:00:06]} 32. g5 {[%emt 0:02:04]} Kg7 {[%emt 0:00:
00]} 33. Bd6 {[%emt 0:00:34]} Bd3 {[%emt 0:00:24]} 34. Bb8 {[%emt 0:01:13]} a6
{[%emt 0:00:05]} 35. Be5+ {[%emt 0:02:03]} Kf8 {[%emt 0:00:44]} 36. Bf6 {
[%emt 0:00:16]} Ke8 {[%emt 0:00:10]} 37. Ke3 {[%emt 0:00:42]} Bb1 {[%emt 0:00:
00]} 38. a3 {[%emt 0:00:06]} Kd7 {[%emt 0:00:12]} 39. Kd2 {[%emt 0:01:20]} Bf5
{[%emt 0:00:46]} 1/2-1/2

[Event "44th Chess Olympiad Women 2022"]
[Site "Chennai"]
[Date "2022.08.03"]
[Round "6.34"]
[White "Rosario Almanzar, Raydily"]
[Black "Corrales Jimenez, Zenia"]
[Result "1/2-1/2"]
[WhiteElo "1882"]
[BlackElo "2143"]
[Annotator "NA RC"]
[PlyCount "61"]
[EventDate "2022.??.??"]
[TimeControl "60"]

1. d4 {[%emt 0:00:16]} d5 {[%emt 0:01:50]} 2. c4 {[%emt 0:00:28]} e6 {[%emt 0:
00:00]} 3. cxd5 {[%emt 0:01:34]} exd5 {[%emt 0:00:23]} 4. Nc3 {[%emt 0:00:28]}
Nf6 {[%emt 0:02:12]} 5. Bg5 {[%emt 0:01:09]} Bb4 {[%emt 0:00:22]} 6. e3 {
[%emt 0:05:31]} h6 {[%emt 0:06:46]} 7. Bh4 {[%emt 0:00:06]} O-O {[%emt 0:12:10]
} 8. Bd3 {[%emt 0:03:08]} Re8 {[%emt 0:00:34]} 9. a3 {[%emt 0:04:37]} Be7 {
[%emt 0:02:10]} 10. Nf3 {[%emt 0:03:17]} Nbd7 {[%emt 0:00:59]} 11. O-O {
[%emt 0:01:02]} c6 {[%emt 0:00:16]} 12. Qc2 {[%emt 0:02:07]} Ne4 {[%emt 0:00:
00]} 13. Bxe7 {[%emt 0:05:13]} Qxe7 {[%emt 0:00:12]} 14. b4 {[%emt 0:05:05]} a6
{[%emt 0:18:56]} 15. Na4 {[%emt 0:06:01]} Nd6 {[%emt 0:06:39]} 16. Rfe1 {
[%emt 0:18:53]} b5 {[%emt 0:09:04]} 17. Nc5 {[%emt 0:05:06]} Nxc5 {[%emt 0:00:
00]} 18. dxc5 {[%emt 0:02:26]} Ne4 {[%emt 0:00:55]} 19. Bxe4 {[%emt 0:03:23]}
dxe4 {[%emt 0:02:19]} 20. Nd4 {[%emt 0:00:58]} Bd7 {[%emt 0:00:44]} 21. Red1 {
[%emt 0:02:41]} Qg5 {[%emt 0:00:54]} 22. Ne2 {[%emt 0:05:09]} Bg4 {[%emt 0:00:
00]} 23. Rd6 {[%emt 0:05:44]} Bxe2 {[%emt 0:00:06]} 24. Qxe2 {[%emt 0:00:01]}
a5 {[%emt 0:00:07]} 25. Rxc6 {[%emt 0:05:27]} axb4 {[%emt 0:00:11]} 26. Qxb5 {
[%emt 0:00:02]} Qe5 {[%emt 0:03:06]} 27. Ra2 {[%emt 0:07:53]} Qd5 {[%emt 0:00:
00]} 28. Ra1 {[%emt 0:01:26]} bxa3 {[%emt 0:00:08]} 29. g3 {[%emt 0:02:21]} Qe5
{[%emt 0:02:24]} 30. Ra2 {[%emt 0:02:10]} Qd5 {[%emt 0:01:51]} 31. Ra1 {
[%emt 0:00:12]} 1/2-1/2

[Event "44th Chess Olympiad Women 2022"]
[Site "Chennai"]
[Date "2022.08.03"]
[Round "6.35"]
[White "Hng, Mei-En Emmanuelle"]
[Black "Garcia, Angie"]
[Result "1/2-1/2"]
[WhiteElo "1997"]
[BlackElo "1894"]
[Annotator "NA RC"]
[PlyCount "81"]
[EventDate "2022.??.??"]
[TimeControl "60"]

1. e4 {[%emt 0:00:13]} e6 {[%emt 0:00:13]} 2. d3 {[%emt 0:00:38]} d5 {[%emt 0:
00:00]} 3. Qe2 {[%emt 0:00:18]} c5 {[%emt 0:01:44]} 4. Nf3 {[%emt 0:00:55]} Nc6
{[%emt 0:00:33]} 5. g3 {[%emt 0:00:39]} Nf6 {[%emt 0:01:10]} 6. Bg2 {[%emt 0:
00:00]} Be7 {[%emt 0:01:51]} 7. O-O {[%emt 0:00:59]} d4 {[%emt 0:00:48]} 8.
Nbd2 {[%emt 0:12:25]} O-O {[%emt 0:04:04]} 9. a4 {[%emt 0:02:21]} e5 {[%emt 0:
00:00]} 10. Nc4 {[%emt 0:05:40]} Qc7 {[%emt 0:00:46]} 11. Bg5 {[%emt 0:10:36]}
h6 {[%emt 0:02:20]} 12. Bd2 {[%emt 0:05:26]} Be6 {[%emt 0:04:00]} 13. Nh4 {
[%emt 0:05:51]} Qc8 {[%emt 0:01:51]} 14. Nf5 {[%emt 0:08:57]} Bxf5 {[%emt 0:00:
00]} 15. exf5 {[%emt 0:01:20]} Qxf5 {[%emt 0:14:08]} 16. f4 {[%emt 0:10:34]}
Qe6 {[%emt 0:00:00]} 17. fxe5 {[%emt 0:02:04]} Nd7 {[%emt 0:00:00]} 18. Rae1 {
[%emt 0:00:47]} Rab8 {[%emt 0:00:00]} 19. Bf3 {[%emt 0:03:39]} Nb6 {[%emt 0:00:
00]} 20. Bg4 {[%emt 0:05:53]} f5 {[%emt 0:01:07]} 21. exf6 {[%emt 0:05:25]}
Qxe2 {[%emt 0:00:20]} 22. Rxe2 {[%emt 0:00:24]} Nxc4 {[%emt 0:02:32]} 23. Be6+
{[%emt 0:01:37]} Kh8 {[%emt 0:00:20]} 24. fxg7+ {[%emt 0:00:46]} Kxg7 {[%emt 0:
00:00]} 25. Bxc4 {[%emt 0:00:09]} Rxf1+ {[%emt 0:02:55]} 26. Kxf1 {[%emt 0:00:
00]} Rf8+ {[%emt 0:00:44]} 27. Kg2 {[%emt 0:01:19]} Bf6 {[%emt 0:02:33]} 28.
Bf4 {[%emt 0:01:34]} b6 {[%emt 0:00:46]} 29. Re6 {[%emt 0:01:54]} Nb4 {[%emt 0:
00:00]} 30. c3 {[%emt 0:06:25]} dxc3 {[%emt 0:01:30]} 31. bxc3 {[%emt 0:00:00]}
Nc2 {[%emt 0:00:49]} 32. Bc1 {[%emt 0:01:48]} Bg5 {[%emt 0:01:36]} 33. Bxg5 {
[%emt 0:01:07]} hxg5 {[%emt 0:00:07]} 34. Bb3 {[%emt 0:01:17]} Na1 {[%emt 0:00:
00]} 35. Bd5 {[%emt 0:01:45]} Nc2 {[%emt 0:00:47]} 36. Re2 {[%emt 0:00:51]} Rd8
{[%emt 0:01:22]} 37. c4 {[%emt 0:01:21]} Nb4 {[%emt 0:01:00]} 38. Re7+ {
[%emt 0:00:14]} Kf6 {[%emt 0:01:02]} 39. Rf7+ {[%emt 0:01:04]} Ke5 {[%emt 0:00:
00]} 40. g4 {[%emt 0:00:36]} Kd4 {[%emt 0:01:20]} 41. Be4 {[%emt 0:10:57]}
1/2-1/2

[Event "44th Chess Olympiad Women 2022"]
[Site "Chennai"]
[Date "2022.08.03"]
[Round "6.35"]
[White "Hng, Mei-Xian Eunice"]
[Black "Palacios, Celina"]
[Result "1-0"]
[WhiteElo "1823"]
[BlackElo "1715"]
[Annotator "NA RC"]
[PlyCount "109"]
[EventDate "2022.??.??"]
[TimeControl "60"]

1. e4 {[%emt 0:00:21]} g6 {[%emt 0:00:50]} 2. d4 {[%emt 0:00:40]} Bg7 {[%emt 0:
00:00]} 3. Nc3 {[%emt 0:01:02]} d6 {[%emt 0:00:29]} 4. Nf3 {[%emt 0:00:43]} Nf6
{[%emt 0:01:18]} 5. Bc4 {[%emt 0:01:19]} c6 {[%emt 0:01:30]} 6. a4 {[%emt 0:00:
00]} O-O {[%emt 0:00:54]} 7. h3 {[%emt 0:03:31]} Qc7 {[%emt 0:05:37]} 8. O-O {
[%emt 0:02:50]} e5 {[%emt 0:04:09]} 9. dxe5 {[%emt 0:08:56]} dxe5 {[%emt 0:00:
00]} 10. Be3 {[%emt 0:00:08]} Nbd7 {[%emt 0:06:44]} 11. a5 {[%emt 0:03:01]} h6
{[%emt 0:03:25]} 12. Qd2 {[%emt 0:05:31]} Kh7 {[%emt 0:02:36]} 13. Rfd1 {
[%emt 0:00:35]} Ne8 {[%emt 0:02:02]} 14. Qd3 {[%emt 0:27:44]} f5 {[%emt 0:00:
00]} 15. Be6 {[%emt 0:03:04]} fxe4 {[%emt 0:05:32]} 16. Nxe4 {[%emt 0:00:38]}
Ndf6 {[%emt 0:02:23]} 17. Bxc8 {[%emt 0:07:14]} Nxe4 {[%emt 0:03:24]} 18. Qxe4
{[%emt 0:01:02]} Rxc8 {[%emt 0:05:28]} 19. Bxa7 {[%emt 0:02:04]} Nd6 {[%emt 0:
00:00]} 20. Qe2 {[%emt 0:01:36]} Nb5 {[%emt 0:05:17]} 21. Bc5 {[%emt 0:01:35]}
Rfe8 {[%emt 0:02:54]} 22. Qe4 {[%emt 0:06:03]} Qf7 {[%emt 0:04:59]} 23. Bb6 {
[%emt 0:03:07]} Re6 {[%emt 0:02:58]} 24. Re1 {[%emt 0:03:20]} Nd6 {[%emt 0:00:
00]} 25. Qe2 {[%emt 0:01:34]} Nf5 {[%emt 0:02:27]} 26. Rad1 {[%emt 0:01:35]} c5
{[%emt 0:02:34]} 27. Qc4 {[%emt 0:01:32]} Qe8 {[%emt 0:04:25]} 28. Qe4 {
[%emt 0:02:45]} Nd6 {[%emt 0:01:57]} 29. Qd5 {[%emt 0:02:07]} e4 {[%emt 0:00:
00]} 30. Bxc5 {[%emt 0:01:03]} Rd8 {[%emt 0:01:21]} 31. Qb3 {[%emt 0:01:13]}
Nf7 {[%emt 0:01:39]} 32. Rxd8 {[%emt 0:00:33]} Nxd8 {[%emt 0:00:02]} 33. Nd2 {
[%emt 0:00:44]} Qc6 {[%emt 0:00:36]} 34. Bb6 {[%emt 0:00:41]} Nf7 {[%emt 0:00:
00]} 35. Nc4 {[%emt 0:00:57]} Ng5 {[%emt 0:00:44]} 36. Ne3 {[%emt 0:00:28]} Re8
{[%emt 0:01:01]} 37. c3 {[%emt 0:00:40]} Qd7 {[%emt 0:00:42]} 38. Qd5 {[%emt 0:
00:00]} Qe7 {[%emt 0:00:39]} 39. Rd1 {[%emt 0:00:42]} Qf6 {[%emt 0:01:11]} 40.
Bd4 {[%emt 0:01:07]} Qe7 {[%emt 0:01:42]} 41. Bxg7 {[%emt 0:30:21]} Kxg7 {
[%emt 0:30:02]} 42. Qd7 {[%emt 0:00:38]} Kf7 {[%emt 0:00:45]} 43. Nc4 {[%emt 0:
00:00]} Kf8 {[%emt 0:00:00]} 44. Qxe7+ {[%emt 0:00:00]} Rxe7 {[%emt 0:00:00]}
45. Re1 {[%emt 0:00:00]} Nf7 {[%emt 0:00:00]} 46. Kf1 {[%emt 0:00:00]} Ke8 {
[%emt 0:00:00]} 47. Rd1 {[%emt 0:00:00]} Re6 {[%emt 0:00:00]} 48. h4 {[%emt 0:
00:00]} Ke7 {[%emt 0:00:00]} 49. Ke2 {[%emt 0:00:00]} h5 {[%emt 0:00:00]} 50.
Ke3 {[%emt 0:00:00]} Nh6 {[%emt 0:00:00]} 51. Ke2 {[%emt 0:00:00]} Ng4 {
[%emt 0:00:00]} 52. Ne3 {[%emt 0:00:00]} Ne5 {[%emt 0:00:00]} 53. Rd5 {[%emt 0:
00:00]} Nd3 {[%emt 0:00:00]} 54. Rb5 {[%emt 0:00:00]} Nf4+ {[%emt 0:00:00]} 55.
Kf1 {[%emt 0:00:00]} 1-0

[Event "44th Chess Olympiad Women 2022"]
[Site "Chennai"]
[Date "2022.08.03"]
[Round "6.35"]
[White "Ortez, Andrea"]
[Black "Khegay, Anjela"]
[Result "1-0"]
[WhiteElo "1908"]
[BlackElo "2131"]
[Annotator "NA RC"]
[PlyCount "75"]
[EventDate "2022.??.??"]
[TimeControl "60"]

1. e4 {[%emt 0:00:05]} g6 {[%emt 0:00:08]} 2. d4 {[%emt 0:00:20]} Bg7 {[%emt 0:
00:00]} 3. Nf3 {[%emt 0:00:19]} d6 {[%emt 0:00:05]} 4. h3 {[%emt 0:00:32]} Nf6
{[%emt 0:00:31]} 5. Nc3 {[%emt 0:00:24]} O-O {[%emt 0:00:14]} 6. Be3 {[%emt 0:
00:00]} Nbd7 {[%emt 0:00:25]} 7. e5 {[%emt 0:05:34]} Ne8 {[%emt 0:00:39]} 8.
Bc4 {[%emt 0:01:52]} Nb6 {[%emt 0:01:20]} 9. Bb3 {[%emt 0:02:10]} d5 {[%emt 0:
00:00]} 10. a4 {[%emt 0:00:50]} c6 {[%emt 0:02:03]} 11. a5 {[%emt 0:03:17]} Nc4
{[%emt 0:00:23]} 12. Bxc4 {[%emt 0:03:12]} dxc4 {[%emt 0:00:02]} 13. Qe2 {
[%emt 0:06:50]} Be6 {[%emt 0:00:33]} 14. Nd2 {[%emt 0:00:19]} c5 {[%emt 0:00:
00]} 15. dxc5 {[%emt 0:04:55]} Bxe5 {[%emt 0:02:11]} 16. Nxc4 {[%emt 0:00:51]}
Bxc3+ {[%emt 0:01:15]} 17. bxc3 {[%emt 0:00:07]} Qd5 {[%emt 0:00:19]} 18. Nb2 {
[%emt 0:20:07]} Qxg2 {[%emt 0:00:47]} 19. O-O-O {[%emt 0:00:14]} Nf6 {[%emt 0:
00:00]} 20. Rdg1 {[%emt 0:05:28]} Qd5 {[%emt 0:00:00]} 21. c4 {[%emt 0:00:20]}
Qe5 {[%emt 0:00:00]} 22. h4 {[%emt 0:04:20]} h5 {[%emt 0:00:38]} 23. Rg5 {
[%emt 0:05:13]} Qe4 {[%emt 0:00:28]} 24. f3 {[%emt 0:01:44]} Qc6 {[%emt 0:00:
00]} 25. Rhg1 {[%emt 0:03:30]} Rfd8 {[%emt 0:02:28]} 26. Qg2 {[%emt 0:05:01]}
Kf8 {[%emt 0:00:18]} 27. Re5 {[%emt 0:02:02]} b6 {[%emt 0:01:54]} 28. Qg5 {
[%emt 0:01:52]} Ng8 {[%emt 0:01:03]} 29. Qf4 {[%emt 0:02:06]} Ke8 {[%emt 0:00:
00]} 30. Rxh5 {[%emt 0:03:53]} f6 {[%emt 0:13:12]} 31. Rh8 {[%emt 0:03:08]} Bf7
{[%emt 0:01:07]} 32. Qh6 {[%emt 0:03:12]} Qe6 {[%emt 0:01:20]} 33. Re1 {
[%emt 0:04:47]} Qf5 {[%emt 0:10:03]} 34. Qg7 {[%emt 0:01:01]} bxc5 {[%emt 0:00:
00]} 35. Bh6 {[%emt 0:01:17]} g5 {[%emt 0:11:09]} 36. Rxg8+ {[%emt 0:00:57]}
Kd7 {[%emt 0:00:09]} 37. Rxd8+ {[%emt 0:02:13]} Rxd8 {[%emt 0:00:18]} 38. Rd1+
{[%emt 0:01:11]} 1-0

[Event "44th Chess Olympiad Women 2022"]
[Site "Chennai"]
[Date "2022.08.03"]
[Round "6.35"]
[White "Zavala Galindo, Alejandra Beatriz"]
[Black "Liu, Yang Hazel"]
[Result "0-1"]
[WhiteElo "1748"]
[BlackElo "2046"]
[Annotator "NA RC"]
[PlyCount "78"]
[EventDate "2022.??.??"]
[TimeControl "60"]

1. e4 {[%emt 0:00:03]} c5 {[%emt 0:00:07]} 2. Nf3 {[%emt 0:00:12]} a6 {[%emt 0:
00:00]} 3. c4 {[%emt 0:00:37]} d6 {[%emt 0:00:35]} 4. d4 {[%emt 0:00:15]} cxd4
{[%emt 0:00:53]} 5. Nxd4 {[%emt 0:02:56]} Nf6 {[%emt 0:00:48]} 6. Nc3 {[%emt 0:
00:00]} e6 {[%emt 0:00:37]} 7. Be3 {[%emt 0:05:19]} Be7 {[%emt 0:00:29]} 8. Be2
{[%emt 0:00:20]} O-O {[%emt 0:01:36]} 9. O-O {[%emt 0:00:33]} b6 {[%emt 0:00:
00]} 10. f3 {[%emt 0:01:47]} Bb7 {[%emt 0:00:25]} 11. Qd2 {[%emt 0:05:06]} Nbd7
{[%emt 0:02:47]} 12. Nc2 {[%emt 0:03:22]} Qc7 {[%emt 0:05:43]} 13. Rfd1 {
[%emt 0:04:44]} Rfd8 {[%emt 0:05:57]} 14. Rac1 {[%emt 0:01:17]} Rac8 {[%emt 0:
00:00]} 15. Ne1 {[%emt 0:11:20]} Qb8 {[%emt 0:04:39]} 16. b3 {[%emt 0:01:47]}
Qa8 {[%emt 0:33:37]} 17. Na4 {[%emt 0:11:27]} Qa7 {[%emt 0:08:32]} 18. Bf1 {
[%emt 0:14:15]} Nc5 {[%emt 0:13:29]} 19. Nxc5 {[%emt 0:06:06]} dxc5 {[%emt 0:
00:00]} 20. Qc3 {[%emt 0:01:37]} Qb8 {[%emt 0:00:50]} 21. Nd3 {[%emt 0:01:15]}
Nd7 {[%emt 0:01:54]} 22. Bf4 {[%emt 0:03:49]} Bd6 {[%emt 0:00:39]} 23. e5 {
[%emt 0:02:01]} Bc7 {[%emt 0:00:34]} 24. Bg3 {[%emt 0:02:22]} Nf8 {[%emt 0:00:
00]} 25. Nf2 {[%emt 0:03:44]} Ng6 {[%emt 0:00:28]} 26. f4 {[%emt 0:01:48]} h5 {
[%emt 0:01:46]} 27. h4 {[%emt 0:01:02]} Ne7 {[%emt 0:00:15]} 28. Be2 {[%emt 0:
00:00]} Qa8 {[%emt 0:00:31]} 29. Bf1 {[%emt 0:03:03]} Nf5 {[%emt 0:00:26]} 30.
Nh3 {[%emt 0:06:12]} Nd4 {[%emt 0:03:09]} 31. Qe1 {[%emt 0:02:28]} Nf5 {
[%emt 0:01:16]} 32. Qc3 {[%emt 0:00:45]} Rxd1 {[%emt 0:00:29]} 33. Rxd1 {
[%emt 0:00:06]} Rd8 {[%emt 0:00:01]} 34. Nf2 {[%emt 0:02:28]} Rxd1 {[%emt 0:00:
00]} 35. Nxd1 {[%emt 0:00:05]} Qd8 {[%emt 0:00:14]} 36. Qe1 {[%emt 0:00:20]}
Nxg3 {[%emt 0:00:09]} 37. Qxg3 {[%emt 0:00:27]} Qxd1 {[%emt 0:00:03]} 38. Qg5 {
[%emt 0:00:24]} g6 {[%emt 0:00:27]} 39. Qe7 {[%emt 0:00:29]} Qd8 {[%emt 0:00:
00]} 0-1

[Event "44th Chess Olympiad Women 2022"]
[Site "Chennai"]
[Date "2022.08.03"]
[Round "6.36"]
[White "Malan, Lucia"]
[Black "Guo, Yu Han"]
[Result "0-1"]
[WhiteElo "1741"]
[BlackElo "1630"]
[Annotator "NA RC"]
[PlyCount "50"]
[EventDate "2022.??.??"]
[TimeControl "60"]

1. e4 {[%emt 0:00:04]} c6 {[%emt 0:00:12]} 2. d4 {[%emt 0:00:06]} d5 {[%emt 0:
00:00]} 3. Nd2 {[%emt 0:00:10]} dxe4 {[%emt 0:00:11]} 4. Nxe4 {[%emt 0:00:06]}
Nf6 {[%emt 0:00:13]} 5. Nxf6+ {[%emt 0:00:12]} exf6 {[%emt 0:00:09]} 6. c3 {
[%emt 0:00:13]} Bd6 {[%emt 0:00:16]} 7. Bd3 {[%emt 0:00:24]} O-O {[%emt 0:00:
00]} 8. Qc2 {[%emt 0:00:26]} Re8+ {[%emt 0:00:12]} 9. Ne2 {[%emt 0:00:08]} h5 {
[%emt 0:00:26]} 10. O-O {[%emt 0:00:30]} h4 {[%emt 0:01:28]} 11. Be3 {[%emt 0:
00:00]} Nd7 {[%emt 0:01:47]} 12. c4 {[%emt 0:01:46]} Nf8 {[%emt 0:00:39]} 13.
c5 {[%emt 0:02:07]} Bb8 {[%emt 0:00:51]} 14. Rad1 {[%emt 0:01:37]} Qc7 {
[%emt 0:04:14]} 15. g3 {[%emt 0:05:34]} g5 {[%emt 0:06:56]} 16. Nc3 {[%emt 0:
00:00]} Bg4 {[%emt 0:06:56]} 17. Rd2 {[%emt 0:07:44]} Qd7 {[%emt 0:03:37]} 18.
d5 {[%emt 0:16:43]} hxg3 {[%emt 0:02:32]} 19. hxg3 {[%emt 0:05:04]} Kg7 {
[%emt 0:32:16]} 20. d6 {[%emt 0:16:32]} Ng6 {[%emt 0:03:05]} 21. Bd4 {[%emt 0:
00:00]} Bf3 {[%emt 0:01:48]} 22. Bf5 {[%emt 0:04:02]} Rh8 {[%emt 0:12:01]} 23.
Bxf6+ {[%emt 0:02:01]} Kxf6 {[%emt 0:00:25]} 24. Nd5+ {[%emt 0:00:20]} cxd5 {
[%emt 0:00:40]} 25. Qc3+ {[%emt 0:04:05]} Ne5 {[%emt 0:00:10]} 0-1

[Event "44th Chess Olympiad Women 2022"]
[Site "Chennai"]
[Date "2022.08.03"]
[Round "6.36"]
[White "Mills, Morgen"]
[Black "Roepke, Sofia"]
[Result "1-0"]
[WhiteElo "1993"]
[BlackElo "1869"]
[Annotator "NA RC"]
[PlyCount "135"]
[EventDate "2022.??.??"]
[TimeControl "60"]

1. e4 {[%emt 0:00:05]} e6 {[%emt 0:00:09]} 2. d4 {[%emt 0:00:08]} d5 {[%emt 0:
00:00]} 3. exd5 {[%emt 0:00:18]} exd5 {[%emt 0:00:05]} 4. Bd3 {[%emt 0:00:54]}
Nc6 {[%emt 0:02:17]} 5. c3 {[%emt 0:07:07]} Bd6 {[%emt 0:00:40]} 6. Qf3 {
[%emt 0:04:52]} Nge7 {[%emt 0:06:26]} 7. Nh3 {[%emt 0:04:50]} Bxh3 {[%emt 0:00:
00]} 8. Qxh3 {[%emt 0:00:14]} Qd7 {[%emt 0:04:00]} 9. Qxd7+ {[%emt 0:00:22]}
Kxd7 {[%emt 0:00:04]} 10. Nd2 {[%emt 0:11:31]} Rae8 {[%emt 0:07:18]} 11. O-O {
[%emt 0:02:46]} Kc8 {[%emt 0:04:08]} 12. b4 {[%emt 0:01:18]} Kb8 {[%emt 0:00:
00]} 13. b5 {[%emt 0:09:10]} Na5 {[%emt 0:02:24]} 14. Bb2 {[%emt 0:10:13]} Nc8
{[%emt 0:04:46]} 15. Nb3 {[%emt 0:07:42]} Nc4 {[%emt 0:02:55]} 16. Bxc4 {
[%emt 0:00:53]} dxc4 {[%emt 0:00:05]} 17. Nd2 {[%emt 0:00:11]} Nb6 {[%emt 0:00:
00]} 18. g3 {[%emt 0:08:36]} Re2 {[%emt 0:04:36]} 19. Rfd1 {[%emt 0:00:05]} Na4
{[%emt 0:20:06]} 20. Rab1 {[%emt 0:00:23]} Nb6 {[%emt 0:00:19]} 21. Kf1 {
[%emt 0:05:55]} Rhe8 {[%emt 0:00:52]} 22. Nf3 {[%emt 0:05:00]} Na4 {[%emt 0:00:
00]} 23. Rd2 {[%emt 0:00:17]} R2e7 {[%emt 0:04:58]} 24. Rc2 {[%emt 0:00:15]}
Kc8 {[%emt 0:02:54]} 25. Bc1 {[%emt 0:00:58]} Kd7 {[%emt 0:01:43]} 26. Be3 {
[%emt 0:02:37]} Nb6 {[%emt 0:01:05]} 27. Nd2 {[%emt 0:01:19]} c6 {[%emt 0:00:
00]} 28. a4 {[%emt 0:01:47]} Nxa4 {[%emt 0:01:19]} 29. bxc6+ {[%emt 0:01:05]}
Kxc6 {[%emt 0:00:03]} 30. Nxc4 {[%emt 0:00:24]} Kc7 {[%emt 0:01:19]} 31. Nxd6 {
[%emt 0:03:47]} Kxd6 {[%emt 0:00:08]} 32. c4 {[%emt 0:00:34]} Rc8 {[%emt 0:00:
00]} 33. Rcc1 {[%emt 0:04:47]} a6 {[%emt 0:01:26]} 34. Rb4 {[%emt 0:01:17]} b5
{[%emt 0:00:13]} 35. cxb5 {[%emt 0:00:32]} Rxc1+ {[%emt 0:00:09]} 36. Bxc1 {
[%emt 0:00:06]} axb5 {[%emt 0:00:23]} 37. Rxb5 {[%emt 0:00:59]} Kc6 {[%emt 0:
00:00]} 38. Ra5 {[%emt 0:00:42]} Nb6 {[%emt 0:00:31]} 39. Rc5+ {[%emt 0:00:15]}
Kd7 {[%emt 0:00:58]} 40. Bf4 {[%emt 0:01:06]} Re4 {[%emt 0:00:17]} 41. Be3 {
[%emt 0:34:38]} Na4 {[%emt 0:30:58]} 42. Rc2 {[%emt 0:00:00]} Kd6 {[%emt 0:00:
00]} 43. Ke2 {[%emt 0:00:00]} Re7 {[%emt 0:00:00]} 44. Kd3 {[%emt 0:00:00]} Rb7
{[%emt 0:00:00]} 45. Ra2 {[%emt 0:00:00]} Nb2+ {[%emt 0:00:00]} 46. Kc3 {
[%emt 0:00:00]} Nd1+ {[%emt 0:00:00]} 47. Kc2 {[%emt 0:00:00]} Nxe3+ {[%emt 0:
00:00]} 48. fxe3 {[%emt 0:00:00]} Kd5 {[%emt 0:00:00]} 49. Ra5+ {[%emt 0:00:00]
} Ke4 {[%emt 0:00:00]} 50. Re5+ {[%emt 0:00:00]} Kf3 {[%emt 0:00:00]} 51. Kd3 {
[%emt 0:00:00]} g6 {[%emt 0:00:00]} 52. d5 {[%emt 0:00:00]} Kg2 {[%emt 0:00:00]
} 53. g4 {[%emt 0:00:00]} Kxh2 {[%emt 0:00:00]} 54. g5 {[%emt 0:00:00]} Kg3 {
[%emt 0:00:00]} 55. Kc4 {[%emt 0:00:00]} Kg4 {[%emt 0:00:11]} 56. d6 {[%emt 0:
00:00]} Rb1 {[%emt 0:04:50]} 57. d7 {[%emt 0:00:00]} Rc1+ {[%emt 0:00:15]} 58.
Kb5 {[%emt 0:00:00]} Rb1+ {[%emt 0:00:18]} 59. Kc6 {[%emt 0:00:00]} Rc1+ {
[%emt 0:02:38]} 60. Kd6 {[%emt 0:00:00]} Rd1+ {[%emt 0:00:53]} 61. Ke7 {
[%emt 0:00:00]} Rxd7+ {[%emt 0:00:28]} 62. Kxd7 {[%emt 0:00:00]} Kh5 {[%emt 0:
00:00]} 63. Ke7 {[%emt 0:00:00]} h6 {[%emt 0:00:41]} 64. gxh6+ {[%emt 0:00:00]}
Kxh6 {[%emt 0:00:04]} 65. Kxf7 {[%emt 0:00:00]} g5 {[%emt 0:00:25]} 66. Rf5 {
[%emt 0:00:00]} g4 {[%emt 0:00:15]} 67. e4 {[%emt 0:00:00]} g3 {[%emt 0:00:17]}
68. Rf3 {[%emt 0:00:00]} 1-0